fUSD/lending_fUSD_20241220
["ID","MTS","AMOUNT","RATE_DAILY","PERIOD"]
[346102217,1734705116422,-1634.75,0.00023689,7]
[346102218,1734705116433,-1634.75,0.00023689,7]
[346102219,1734705116443,-208.0,0.0002369,2]
[346102220,1734705116458,-1142.93254663,0.00023735,2]
[346102221,1734705116468,-200.0,0.00023735,2]
[346102222,1734705116479,-2000.0,0.00023735,2]
[346102223,1734705116490,-200.0,0.00023735,2]
[346102224,1734705116501,-210.0,0.0002379,2]
[346102225,1734705116512,-297726.38317878,0.0002382,2]
[346102226,1734705116522,-12011.34557989,0.00023821,2]
[346102227,1734705116532,-250.237156,0.00023835,4]
[346102228,1734705116542,-161.217856,0.00023835,4]
[346102229,1734705116552,-500.0,0.00023835,4]
[346102230,1734705116562,-500.0,0.00023835,4]
[346102231,1734705116573,-500.0,0.00023835,4]
[346102232,1734705116583,-593.35549254,0.00023835,4]
[346102233,1734705116593,-500.0,0.00023835,4]
[346102234,1734705116604,-500.0,0.00023835,4]
[346102235,1734705116614,-500.0,0.00023835,4]
[346102236,1734705116624,-500.0,0.00023835,4]
[346102237,1734705116635,-500.0,0.00023835,4]
[346102238,1734705116646,-500.0,0.00023835,4]
[346102239,1734705116656,-728.98,0.00023835,4]
[346102240,1734705116667,-500.0,0.00023835,4]
[346102241,1734705116678,-500.0,0.00023835,4]
[346102242,1734705116689,-500.0,0.00023835,4]
[346102243,1734705116703,-500.0,0.00023835,4]
[346102244,1734705116714,-500.0,0.00023835,4]
[346102245,1734705116725,-500.0,0.00023835,4]
[346102246,1734705116735,-500.0,0.00023835,4]
[346102247,1734705116746,-478.52774922,0.00023835,4]
[346102248,1734705116757,-500.0,0.00023835,4]
[346102249,1734705116767,-500.0,0.00023835,4]
[346102250,1734705116778,-500.0,0.00023835,4]
[346102251,1734705116789,-500.0,0.00023835,4]
[346102252,1734705116799,-703.15,0.00023835,4]
[346102253,1734705116810,-500.0,0.00023835,4]
[346102254,1734705116820,-500.0,0.00023835,4]
[346102255,1734705116831,-500.0,0.00023835,4]
[346102256,1734705116842,-500.0,0.00023835,4]
[346102257,1734705116853,-500.0,0.00023835,4]
[346102258,1734705116865,-500.0,0.00023835,4]
[346102259,1734705116876,-500.0,0.00023835,4]
[346102260,1734705116887,-507.1835018,0.00023835,4]
[346102261,1734705116899,-500.0,0.00023835,4]
[346102262,1734705116911,-500.0,0.00023835,4]
[346102263,1734705116923,-500.0,0.00023835,4]
[346102264,1734705116934,-340.50549882,0.00023835,4]
[346102265,1734705116946,-506.46439358,0.00023835,4]
[346102266,1734705116961,-500.0,0.00023835,4]
[346102267,1734705116972,-500.0,0.00023835,4]
[346102268,1734705116983,-500.0,0.00023835,4]
[346102269,1734705116995,-620.27959087,0.00023835,4]
[346102270,1734705117006,-500.0,0.00023835,4]
[346102271,1734705117017,-500.0,0.00023835,4]
[346102272,1734705117029,-500.0,0.00023835,4]
[346102273,1734705117043,-367.09068307,0.00023835,4]
[346102274,1734705117061,-500.0,0.00023835,4]
[346102275,1734705117077,-500.0,0.00023835,4]
[346102276,1734705117092,-500.0,0.00023835,4]
[346102277,1734705117109,-500.0,0.00023835,4]
[346102278,1734705117126,-500.0,0.00023835,4]
[346102279,1734705117141,-500.0,0.00023835,4]
[346102280,1734705117154,-500.0,0.00023835,4]
[346102281,1734705117171,-500.0,0.00023835,4]
[346102282,1734705117187,-500.0,0.00023835,4]
[346102283,1734705117207,-635.16375757,0.00023835,4]
[346102284,1734705117223,-500.0,0.00023835,4]
[346102285,1734705117241,-500.0,0.00023835,4]
[346102286,1734705117257,-500.0,0.00023835,4]
[346102287,1734705117272,-500.0,0.00023835,4]
[346102288,1734705117290,-500.0,0.00023835,4]
[346102289,1734705117308,-500.0,0.00023835,4]
[346102290,1734705117321,-500.0,0.00023835,4]
[346102291,1734705117336,-557.63508753,0.00023835,4]
[346102292,1734705117351,-500.0,0.00023835,4]
[346102293,1734705117363,-500.0,0.00023835,4]
[346102294,1734705117380,-500.0,0.00023835,4]
[346102295,1734705117395,-500.0,0.00023835,4]
[346102296,1734705117407,-500.0,0.00023835,4]
[346102297,1734705117424,-500.0,0.00023835,4]
[346102298,1734705117438,-500.0,0.00023835,4]
[346102299,1734705117451,-500.0,0.00023835,4]
[346102300,1734705117467,-500.0,0.00023835,4]
[346102301,1734705117480,-500.0,0.00023835,4]
[346102302,1734705117494,-500.0,0.00023835,4]
[346102303,1734705117507,-526.30020372,0.00023835,4]
[346102304,1734705117522,-500.0,0.00023835,4]
[346102305,1734705117536,-1177.85,0.00023835,4]
[346102306,1734705117549,-654.6,0.00023835,4]
[346102307,1734705117561,-500.0,0.00023835,4]
[346102308,1734705117574,-500.0,0.00023835,4]
[346102309,1734705117588,-500.0,0.00023835,4]
[346102310,1734705117602,-500.0,0.00023835,4]
[346102311,1734705117616,-563.99,0.00023835,4]
[346102312,1734705117630,-500.0,0.00023835,4]
[346102313,1734705117643,-1056.52,0.00023835,4]
[346102314,1734705117657,-500.0,0.00023835,4]
[346102315,1734705117671,-500.0,0.00023835,4]
[346102316,1734705117685,-500.0,0.00023835,4]
[346102317,1734705117699,-500.0,0.00023835,4]
[346102318,1734705117717,-500.0,0.00023835,4]
[346102319,1734705117731,-500.0,0.00023835,4]
[346102320,1734705117744,-500.0,0.00023835,4]
[346102321,1734705117758,-500.0,0.00023835,4]
[346102322,1734705117772,-500.0,0.00023835,4]
[346102323,1734705117787,-500.0,0.00023835,4]
[346102324,1734705117801,-500.0,0.00023835,4]
[346102325,1734705117815,-500.0,0.00023835,4]
[346102326,1734705117829,-500.0,0.00023835,4]
[346102327,1734705117843,-500.0,0.00023835,4]
[346102328,1734705117856,-500.0,0.00023835,4]
[346102329,1734705117870,-500.0,0.00023835,4]
[346102330,1734705117884,-484.91112226,0.00023835,4]
[346102331,1734705117898,-500.0,0.00023835,4]
[346102332,1734705117912,-500.0,0.00023835,4]
[346102333,1734705117926,-772.0,0.00023835,4]
[346102334,1734705117940,-500.0,0.00023835,4]
[346102335,1734705117958,-500.0,0.00023835,4]
[346102336,1734705117972,-500.0,0.00023835,4]
[346102337,1734705117986,-500.0,0.00023835,4]
[346102338,1734705118001,-500.0,0.00023835,4]
[346102339,1734705118015,-500.0,0.00023835,4]
[346102340,1734705118029,-500.0,0.00023835,4]
[346102341,1734705118043,-500.0,0.00023835,4]
[346102342,1734705118056,-500.0,0.00023835,4]
[346102343,1734705118070,-500.0,0.00023835,4]
[346102344,1734705118083,-156.02555211,0.00023835,4]
[346102345,1734705118097,-500.0,0.00023835,4]
[346102346,1734705118110,-500.0,0.00023835,4]
[346102347,1734705118123,-500.0,0.00023835,4]
[346102348,1734705118136,-680.38,0.00023835,4]
[346102349,1734705118149,-567.82,0.00023835,4]
[346102350,1734705118162,-500.0,0.00023835,4]
[346102351,1734705118175,-500.0,0.00023835,4]
[346102352,1734705118188,-500.0,0.00023835,4]
[346102353,1734705118201,-500.0,0.00023835,4]
[346102354,1734705118215,-705.11,0.00023835,4]
[346102355,1734705118228,-500.0,0.00023835,4]
[346102356,1734705118241,-500.0,0.00023835,4]
[346102357,1734705118255,-500.0,0.00023835,4]
[346102358,1734705118268,-500.0,0.00023835,4]
[346102359,1734705118282,-500.0,0.00023835,4]
[346102360,1734705118295,-500.0,0.00023835,4]
[346102361,1734705118306,-500.0,0.00023835,4]
[346102362,1734705118320,-500.0,0.00023835,4]
[346102363,1734705118332,-500.0,0.00023835,4]
[346102364,1734705118345,-500.0,0.00023835,4]
[346102365,1734705118359,-989.25,0.00023835,4]
[346102366,1734705118372,-500.0,0.00023835,4]
[346102367,1734705118383,-500.0,0.00023835,4]
[346102368,1734705118396,-544.06,0.00023835,4]
[346102369,1734705118407,-703.96,0.00023835,4]
[346102370,1734705118419,-500.0,0.00023835,4]
[346102371,1734705118431,-500.0,0.00023835,2]
[346102372,1734705118445,-500.0,0.00023835,4]
[346102373,1734705118460,-500.0,0.00023835,4]
[346102374,1734705118472,-500.0,0.00023835,4]
[346102375,1734705118485,-1124.77,0.00023835,4]
[346102376,1734705118496,-500.0,0.00023835,4]
[346102377,1734705118508,-1454.97,0.00023835,5]
[346102378,1734705118520,-500.0,0.00023835,4]
[346102379,1734705118533,-500.0,0.00023835,4]
[346102380,1734705118545,-500.0,0.00023835,4]
[346102381,1734705118559,-500.0,0.00023835,4]
[346102382,1734705118572,-622.43,0.00023835,4]
[346102383,1734705118585,-500.0,0.00023835,4]
[346102384,1734705118597,-500.0,0.00023835,2]
[346102385,1734705118611,-500.0,0.00023835,4]
[346102386,1734705118622,-578.99,0.00023835,4]
[346102387,1734705118635,-500.0,0.00023835,4]
[346102388,1734705118647,-500.0,0.00023835,4]
[346102389,1734705118660,-500.0,0.00023835,4]
[346102390,1734705118672,-500.0,0.00023835,4]
[346102391,1734705118684,-500.0,0.00023835,4]
[346102392,1734705118697,-500.0,0.00023835,4]
[346102393,1734705118710,-590.7,0.00023835,4]
[346102394,1734705118722,-743.45,0.00023835,4]
[346102395,1734705118735,-500.0,0.00023835,4]
[346102396,1734705118747,-500.0,0.00023835,4]
[346102397,1734705118760,-587.7,0.00023835,4]
[346102398,1734705118777,-1581.26,0.00023835,4]
[346102399,1734705118790,-601.6,0.00023835,4]
[346102400,1734705118803,-533.84,0.00023835,4]
[346102401,1734705118816,-500.0,0.00023835,4]
[346102402,1734705118829,-755.6,0.00023835,4]
[346102403,1734705118841,-500.0,0.00023835,4]
[346102404,1734705118853,-539.26,0.00023835,4]
[346102405,1734705118866,-500.0,0.00023835,4]
[346102406,1734705118879,-500.0,0.00023835,4]
[346102407,1734705118892,-864.62,0.00023835,4]
[346102408,1734705118904,-500.0,0.00023835,4]
[346102409,1734705118917,-866.89,0.00023835,4]
[346102410,1734705118929,-500.0,0.00023835,4]
[346102411,1734705118942,-667.5,0.00023835,4]
[346102412,1734705118956,-567.86,0.00023835,4]
[346102413,1734705118969,-500.0,0.00023835,4]
[346102414,1734705118983,-569.33,0.00023835,2]
[346102415,1734705118995,-1054.51,0.00023835,4]
[346102416,1734705119007,-574.50412182,0.00023835,4]
[346102417,1734705119020,-500.0,0.00023835,4]
[346102418,1734705119032,-1134.57,0.00023835,4]
[346102419,1734705119044,-760.73,0.00023835,4]
[346102420,1734705119056,-500.0,0.00023835,4]
[346102421,1734705119069,-500.0,0.00023835,4]
[346102422,1734705119081,-500.0,0.00023835,4]
[346102423,1734705119093,-500.0,0.00023835,4]
[346102424,1734705119104,-500.0,0.00023835,4]
[346102425,1734705119117,-675.37,0.00023835,4]
[346102426,1734705119129,-500.0,0.00023835,4]
[346102427,1734705119140,-500.0,0.00023835,4]
[346102428,1734705119153,-500.0,0.00023835,4]
[346102429,1734705119164,-500.0,0.00023835,4]
[346102430,1734705119176,-500.0,0.00023835,4]
[346102431,1734705119188,-500.0,0.00023835,4]
[346102432,1734705119200,-500.0,0.00023835,4]
[346102433,1734705119215,-500.0,0.00023835,4]
[346102434,1734705119226,-500.0,0.00023835,4]
[346102435,1734705119238,-500.0,0.00023835,4]
[346102436,1734705119250,-647.63,0.00023835,4]
[346102437,1734705119262,-500.0,0.00023835,4]
[346102438,1734705119274,-500.0,0.00023835,4]
[346102439,1734705119286,-500.0,0.00023835,4]
[346102440,1734705119301,-312.09512934,0.00023835,4]
[346102441,1734705119313,-500.0,0.00023835,4]
[346102442,1734705119325,-500.0,0.00023835,4]
[346102443,1734705119340,-500.0,0.00023835,4]
[346102444,1734705119352,-500.0,0.00023835,4]
[346102445,1734705119367,-500.0,0.00023835,4]
[346102446,1734705119379,-500.0,0.00023835,4]
[346102447,1734705119391,-500.0,0.00023835,4]
[346102448,1734705119404,-619.34,0.00023835,4]
[346102449,1734705119416,-1919.94,0.00023835,4]
[346102450,1734705119429,-500.0,0.00023835,4]
[346102451,1734705119440,-500.0,0.00023835,4]
[346102452,1734705119452,-500.0,0.00023835,4]
[346102453,1734705119470,-500.0,0.00023835,4]
[346102454,1734705119484,-1914.57,0.00023835,4]
[346102455,1734705119502,-500.0,0.00023835,4]
[346102456,1734705119516,-500.0,0.00023835,4]
[346102457,1734705119531,-696.31,0.00023835,4]
[346102458,1734705119546,-704.45,0.00023835,4]
[346102459,1734705119561,-733.73,0.00023835,4]
[346102460,1734705119575,-500.0,0.00023835,4]
[346102461,1734705119590,-865.58,0.00023835,4]
[346102462,1734705119605,-624.83,0.00023835,4]
[346102463,1734705119619,-975.48,0.00023835,4]
[346102464,1734705119633,-515.76,0.00023835,4]
[346102465,1734705119647,-500.0,0.00023835,4]
[346102466,1734705119661,-500.0,0.00023835,4]
[346102467,1734705119676,-500.0,0.00023835,4]
[346102468,1734705119689,-500.0,0.00023835,4]
[346102469,1734705119707,-500.0,0.00023835,4]
[346102470,1734705119721,-500.0,0.00023835,4]
[346102471,1734705119735,-732.91,0.00023835,4]
[346102472,1734705119749,-1106.39,0.00023835,4]
[346102473,1734705119764,-505.51,0.00023835,4]
[346102474,1734705119779,-500.0,0.00023835,4]
[346102475,1734705119794,-880.48,0.00023835,4]
[346102476,1734705119808,-500.0,0.00023835,4]
[346102477,1734705119821,-500.0,0.00023835,4]
[346102478,1734705119836,-500.0,0.00023835,4]
[346102479,1734705119850,-500.0,0.00023835,4]
[346102480,1734705119865,-500.0,0.00023835,4]
[346102481,1734705119880,-500.0,0.00023835,4]
[346102482,1734705119895,-235.21105478,0.00023835,4]
[346102483,1734705119909,-549.35,0.00023835,4]
[346102484,1734705119924,-500.0,0.00023835,4]
[346102485,1734705119939,-500.0,0.00023835,4]
[346102486,1734705119953,-500.0,0.00023835,4]
[346102487,1734705119968,-500.0,0.00023835,4]
[346102488,1734705119982,-500.0,0.00023835,4]
[346102489,1734705119997,-500.0,0.00023835,4]
[346102490,1734705120012,-500.0,0.00023835,4]
[346102491,1734705120026,-500.0,0.00023835,4]
[346102492,1734705120041,-500.0,0.00023835,4]
[346102493,1734705120056,-500.0,0.00023835,4]
[346102494,1734705120071,-500.0,0.00023835,4]
[346102495,1734705120087,-626.11,0.00023835,4]
[346102496,1734705120102,-575.74,0.00023835,4]
[346102497,1734705120118,-500.0,0.00023835,4]
[346102498,1734705120347,-500.0,0.00023835,4]
[346102499,1734705120370,-892.44,0.00023835,4]
[346102500,1734705120380,-867.32,0.00023835,4]
[346102501,1734705120391,-500.0,0.00023835,4]
[346102502,1734705120402,-500.0,0.00023835,4]
[346102503,1734705120412,-500.0,0.00023835,4]
[346102504,1734705120422,-572.67,0.00023835,4]
[346102505,1734705120432,-882.96,0.00023835,4]
[346102506,1734705120443,-628.87,0.00023835,4]
[346102507,1734705120453,-531.92,0.00023835,4]
[346102508,1734705120465,-470.38080968,0.00023835,4]
[346102509,1734705120475,-1531.54,0.00023835,4]
[346102510,1734705120485,-797.56,0.00023835,4]
[346102511,1734705120495,-573.13,0.00023835,4]
[346102512,1734705120504,-500.0,0.00023835,4]
[346102513,1734705120514,-500.0,0.00023835,4]
[346102514,1734705120524,-500.0,0.00023835,4]
[346102515,1734705120535,-1191.56,0.00023835,4]
[346102516,1734705120544,-898.63,0.00023835,4]
[346102517,1734705120554,-1462.97,0.00023835,4]
[346102518,1734705120564,-500.0,0.00023835,4]
[346102519,1734705120573,-690.32,0.00023835,4]
[346102520,1734705120582,-500.0,0.00023835,4]
[346102521,1734705120592,-895.67,0.00023835,4]
[346102522,1734705120602,-500.0,0.00023835,4]
[346102523,1734705120612,-500.0,0.00023835,4]
[346102524,1734705120622,-2453.25,0.00023835,4]
[346102525,1734705120632,-500.0,0.00023835,4]
[346102526,1734705120642,-500.0,0.00023835,4]
[346102527,1734705120651,-500.0,0.00023835,4]
[346102528,1734705120661,-500.0,0.00023835,4]
[346102529,1734705120671,-500.0,0.00023835,4]
[346102530,1734705120681,-596.16,0.00023835,4]
[346102531,1734705120691,-500.0,0.00023835,4]
[346102532,1734705120701,-2002.3,0.00023835,4]
[346102533,1734705120717,-500.0,0.00023835,4]
[346102534,1734705120727,-500.0,0.00023835,4]
[346102535,1734705120737,-500.0,0.00023835,4]
[346102536,1734705120747,-500.0,0.00023835,4]
[346102537,1734705120757,-2126.04,0.00023835,4]
[346102538,1734705120767,-1149.07,0.00023835,4]
[346102539,1734705120777,-1147.67,0.00023835,4]
[346102540,1734705120787,-1974.63,0.00023835,4]
[346102541,1734705120797,-922.26,0.00023835,4]
[346102542,1734705120808,-585.88,0.00023835,4]
[346102543,1734705120818,-645.53,0.00023835,4]
[346102544,1734705120828,-500.0,0.00023835,4]
[346102545,1734705120838,-1312.39,0.00023835,4]
[346102546,1734705120848,-1995.26,0.00023835,4]
[346102547,1734705120858,-626.7,0.00023835,4]
[346102548,1734705120868,-591.96,0.00023835,4]
[346102549,1734705120878,-500.0,0.00023835,4]
[346102550,1734705120888,-4286.95,0.00023835,4]
[346102551,1734705120903,-1869.88,0.00023835,4]
[346102552,1734705120913,-1582.21,0.00023835,4]
[346102553,1734705120923,-500.0,0.00023835,4]
[346102554,1734705120932,-1996.44,0.00023835,4]
[346102555,1734705120942,-918.42,0.00023835,4]
[346102556,1734705120951,-500.0,0.00023835,4]
[346102557,1734705120966,-237.74656719,0.00023835,4]
[346102558,1734705120976,-901.44,0.00023835,4]
[346102559,1734705120987,-2729.02,0.00023835,4]
[346102560,1734705120997,-500.0,0.00023835,4]
[346102561,1734705121007,-500.0,0.00023835,4]
[346102562,1734705121020,-576.4,0.00023835,4]
[346102563,1734705121030,-2844.5,0.00023835,4]
[346102564,1734705121040,-4012.09,0.00023835,4]
[346102565,1734705121051,-2473.03,0.00023835,4]
[346102566,1734705121061,-500.0,0.00023835,4]
[346102567,1734705121071,-500.0,0.00023835,4]
[346102568,1734705121081,-516.15,0.00023835,4]
[346102569,1734705121091,-877.15,0.00023835,4]
[346102570,1734705121101,-1483.16,0.00023835,4]
[346102571,1734705121112,-3922.15,0.00023835,4]
[346102572,1734705121121,-542.96,0.00023835,4]
[346102573,1734705121131,-881.23,0.00023835,4]
[346102574,1734705121141,-2575.39,0.00023835,4]
[346102575,1734705121151,-14313.01,0.00023835,4]
[346102576,1734705121160,-500.0,0.00023835,4]
[346102577,1734705121170,-550.65,0.00023835,4]
[346102578,1734705121180,-1199.62,0.00023835,4]
[346102579,1734705121190,-5233.77,0.00023835,4]
[346102580,1734705121200,-526.33,0.00023835,4]
[346102581,1734705121212,-1198.28,0.00023835,4]
[346102582,1734705121222,-822.83,0.00023835,4]
[346102583,1734705121232,-500.0,0.00023835,4]
[346102584,1734705121243,-1305.96,0.00023835,4]
[346102585,1734705121253,-500.0,0.00023835,4]
[346102586,1734705121263,-2054.82,0.00023835,4]
[346102587,1734705121274,-781.1,0.00023835,4]
[346102588,1734705121285,-500.0,0.00023835,4]
[346102589,1734705121296,-2976.46,0.00023835,4]
[346102590,1734705121308,-532.86,0.00023835,4]
[346102591,1734705121320,-1376.74,0.00023835,4]
[346102592,1734705121330,-1406.29,0.00023835,4]
[346102593,1734705121339,-732.83,0.00023835,4]
[346102594,1734705121351,-2019.8,0.00023835,4]
[346102595,1734705121361,-500.0,0.00023835,4]
[346102596,1734705121371,-623.99,0.00023835,4]
[346102597,1734705121381,-594.71,0.00023835,4]
[346102598,1734705121391,-14207.49,0.00023835,4]
[346102599,1734705121401,-207.565158,0.00023835,4]
[346102600,1734705121411,-3380.89,0.00023835,4]
[346102601,1734705121421,-500.0,0.00023835,4]
[346102602,1734705121431,-584.56,0.00023835,4]
[346102603,1734705121441,-1870.48,0.00023835,4]
[346102604,1734705121451,-2641.01,0.00023835,4]
[346102605,1734705121466,-1151.74,0.00023835,4]
[346102606,1734705121476,-1068.83,0.00023835,4]
[346102607,1734705121486,-500.0,0.00023835,4]
[346102608,1734705121496,-2387.91,0.00023835,4]
[346102609,1734705121506,-291.05,0.00023835,4]
[346102610,1734705121515,-2569.35,0.00023835,4]
[346102611,1734705121525,-500.0,0.00023835,4]
[346102612,1734705121535,-1641.53,0.00023835,4]
[346102613,1734705121545,-7684.97,0.00023835,4]
[346102614,1734705121555,-500.0,0.00023835,4]
[346102615,1734705121565,-1122.02,0.00023835,4]
[346102616,1734705121575,-500.0,0.00023835,4]
[346102617,1734705121585,-585.7044276,0.00023835,4]
[346102618,1734705121596,-3739.73,0.00023835,4]
[346102619,1734705121606,-1657.74,0.00023835,4]
[346102620,1734705121616,-572.34,0.00023835,4]
[346102621,1734705121626,-500.0,0.00023835,4]
[346102622,1734705121636,-1002.92,0.00023835,4]
[346102623,1734705121646,-500.0,0.00023835,4]
[346102624,1734705121656,-500.0,0.00023835,4]
[346102625,1734705121666,-500.0,0.00023835,4]
[346102626,1734705121675,-1449.75,0.00023835,4]
[346102627,1734705121685,-4285.0,0.00023835,4]
[346102628,1734705121695,-500.0,0.00023835,4]
[346102629,1734705121705,-1876.8,0.00023835,4]
[346102630,1734705121718,-500.0,0.00023835,4]
[346102631,1734705121728,-3137.09,0.00023835,4]
[346102632,1734705121738,-500.0,0.00023835,4]
[346102633,1734705121748,-500.0,0.00023835,4]
[346102634,1734705121758,-171.847622,0.00023835,4]
[346102635,1734705121768,-938.17,0.00023835,4]
[346102636,1734705121777,-500.0,0.00023835,4]
[346102637,1734705121787,-1128.3,0.00023835,4]
[346102638,1734705121798,-500.0,0.00023835,4]
[346102639,1734705121807,-630.09,0.00023835,4]
[346102640,1734705121817,-653.61,0.00023835,4]
[346102641,1734705121828,-1928.85,0.00023835,4]
[346102642,1734705121837,-2099.69,0.00023835,4]
[346102643,1734705121847,-7043.04,0.00023835,4]
[346102644,1734705121857,-500.0,0.00023835,4]
[346102645,1734705121867,-2163.13,0.00023835,4]
[346102646,1734705121876,-970.03,0.00023835,4]
[346102647,1734705121885,-2134.52,0.00023835,4]
[346102648,1734705121895,-500.0,0.00023835,4]
[346102649,1734705121905,-636.23726146,0.00023835,4]
[346102650,1734705121914,-2369.63,0.00023835,4]
[346102651,1734705121924,-1668.69,0.00023835,4]
[346102652,1734705121935,-500.0,0.00023835,4]
[346102653,1734705121945,-216.42,0.00023835,4]
[346102654,1734705121955,-500.0,0.00023835,4]
[346102655,1734705121967,-500.0,0.00023835,4]
[346102656,1734705121978,-500.0,0.00023835,4]
[346102657,1734705121987,-653.02,0.00023835,4]
[346102658,1734705121997,-500.0,0.00023835,4]
[346102659,1734705122007,-500.0,0.00023835,4]
[346102660,1734705122017,-505.43,0.00023835,4]
[346102661,1734705122027,-1168.08,0.00023835,4]
[346102662,1734705122037,-533.99,0.00023835,4]
[346102663,1734705122047,-500.0,0.00023835,4]
[346102664,1734705122056,-1659.64,0.00023835,4]
[346102665,1734705122067,-500.0,0.00023835,4]
[346102666,1734705122077,-729.79,0.00023835,4]
[346102667,1734705122087,-709.06,0.00023835,4]
[346102668,1734705122098,-500.0,0.00023835,4]
[346102669,1734705122108,-500.0,0.00023835,4]
[346102670,1734705122118,-875.71,0.00023835,4]
[346102671,1734705122128,-644.22,0.00023835,4]
[346102672,1734705122138,-560.49,0.00023835,4]
[346102673,1734705122148,-11283.25,0.00023835,4]
[346102674,1734705122159,-500.0,0.00023835,4]
[346102675,1734705122168,-500.0,0.00023835,4]
[346102676,1734705122178,-500.0,0.00023835,4]
[346102677,1734705122187,-1169.27,0.00023835,4]
[346102678,1734705122198,-500.0,0.00023835,4]
[346102679,1734705122210,-500.0,0.00023835,4]
[346102680,1734705122220,-1083.29,0.00023835,4]
[346102681,1734705122230,-500.0,0.00023835,4]
[346102682,1734705122240,-1374.41,0.00023835,4]
[346102683,1734705122251,-500.0,0.00023835,4]
[346102684,1734705122262,-345.36347225,0.00023835,4]
[346102685,1734705122273,-500.0,0.00023835,4]
[346102686,1734705122283,-500.0,0.00023835,4]
[346102687,1734705122295,-1644.02,0.00023835,4]
[346102688,1734705122309,-766.85,0.00023835,4]
[346102689,1734705122319,-1990.15,0.00023835,4]
[346102690,1734705122329,-500.0,0.00023835,4]
[346102691,1734705122339,-1025.82,0.00023835,4]
[346102692,1734705122351,-1150.78,0.00023835,4]
[346102693,1734705122361,-577.53793155,0.00023835,4]
[346102694,1734705122371,-500.0,0.00023835,4]
[346102695,1734705122381,-500.0,0.00023835,4]
[346102696,1734705122391,-626.0,0.00023835,4]
[346102697,1734705122401,-2550.51,0.00023835,4]
[346102698,1734705122411,-529.7,0.00023835,4]
[346102699,1734705122421,-1894.92,0.00023835,4]
[346102700,1734705122431,-1717.15,0.00023835,4]
[346102701,1734705122441,-777.61,0.00023835,4]
[346102702,1734705122451,-2160.93,0.00023835,4]
[346102703,1734705122464,-500.0,0.00023835,4]
[346102704,1734705122474,-500.0,0.00023835,4]
[346102705,1734705122483,-8504.1102859,0.00023864,2]
[346102706,1734705122494,-6456.7584003,0.00023864,2]
[346102707,1734705122504,-178005.98185998,0.0002388,2]
[346102708,1734705122514,-206.0,0.0002388,2]
[346102709,1734705122524,-555886.73918332,0.0002388,2]
[346102710,1734705122534,-4352172.53735426,0.0002388,2]
[346102711,1734705123114,-180.4,0.000179,2]
[346102712,1734705123124,-226.46106235,0.00019979,2]
[346102713,1734705123135,-500.0,0.00021917,4]
[346102714,1734705123145,-410.028164,0.00021917,2]
[346102715,1734705123156,-500.0,0.00022191,4]
[346102716,1734705123166,-6495.30959872,0.0002388,2]